bitfinex-derivatives/quotes_BTCF0:USTF0_20210105
["timestamp","ask_amount","ask_price","bid_price","bid_amount"]
[1609808361055,0.13328,32363.0,32335.0,4.009]
[1609808361255,0.13328,32363.0,32335.0,4.15752]
[1609808361854,0.26960608,32363.0,32356.0,0.13632608]
[1609808362255,0.13328,32363.0,32356.0,0.13632608]
[1609808364056,0.13328,32363.0,32362.0,0.13632608]
[1609808364456,0.47922884,32376.0,32362.0,0.13632608]
[1609808365057,0.47922884,32376.0,32361.0,4.8706]
[1609808365859,0.47922884,32376.0,32375.0,0.13632608]
[1609808366462,0.47922884,32376.0,32375.0,4.20572608]
[1609808367062,0.52817151,32377.0,32375.0,4.20572608]
[1609808367464,0.52817151,32377.0,32375.0,4.0694]
[1609808367966,0.52817151,32377.0,32376.0,0.13632608]
[1609808369165,0.52817151,32377.0,32373.0,4.8132]
[1609808369966,0.52817151,32377.0,32376.0,0.13632608]
[1609808370367,1.21487037,32390.0,32376.0,0.13632608]
[1609808370368,0.79618589,32379.0,32376.0,0.13632608]
[1609808371271,0.1587,32390.0,32376.0,0.13632608]
[1609808371470,0.1587,32390.0,32376.0,4.89372608]
[1609808371668,0.1587,32390.0,32376.0,0.13632608]
[1609808372068,0.1587,32390.0,32389.0,0.13632608]
[1609808374570,0.70812822,32412.0,32381.0,5.177]
[1609808375271,0.2734,32414.0,32381.0,5.177]
[1609808376073,0.13632608,32408.0,32403.0,0.13632608]
[1609808377775,0.13632608,32408.0,32373.0,4.2612]
[1609808377976,0.13632608,32395.0,32373.0,4.2612]
[1609808378175,0.23989608,32395.0,32373.0,4.2612]
[1609808379978,0.23989608,32395.0,32393.0,0.13632608]
[1609808380377,0.10357,32395.0,32393.0,0.13632608]
[1609808381479,0.10357,32395.0,32365.0,0.124]
[1609808381678,0.10357,32395.0,32371.0,4.3405]
[1609808381980,0.10357,32395.0,32378.0,0.13632608]
[1609808382580,0.10357,32395.0,32371.0,4.3405]
[1609808383181,0.4047,32404.0,32371.0,4.3405]
[1609808383982,0.4047,32404.0,32395.0,0.13632608]
[1609808386085,0.13632608,32396.0,32395.0,0.13632608]
[1609808386284,0.28907608,32396.0,32395.0,0.13632608]
[1609808390988,0.15275,32396.0,32395.0,0.13632608]
[1609808391390,0.4047,32404.0,32395.0,0.13632608]
[1609808391990,0.13632608,32400.0,32395.0,0.13632608]
[1609808394196,0.13632608,32400.0,32399.0,0.13632608]
[1609808394395,0.4047,32404.0,32399.0,0.13632608]
[1609808394795,0.4047,32404.0,32385.0,4.5871]
[1609808396095,0.4047,32404.0,32403.0,0.13632608]
[1609808399099,0.124,32404.0,32403.0,0.13632608]
[1609808399299,0.13632608,32411.0,32403.0,0.13632608]
[1609808399300,0.01627656,32413.0,32403.0,0.13632608]
[1609808400100,0.01627656,32413.0,32412.0,0.13632608]
[1609808400501,0.01627656,32413.0,32412.0,4.49742608]
[1609808401805,0.01627656,32413.0,32412.0,4.3611]
[1609808402405,0.01627656,32413.0,32412.0,4.49742608]
[1609808402805,0.13632608,32416.0,32412.0,4.49742608]
[1609808404409,0.13632608,32416.0,32412.0,4.49554244]
[1609808407614,0.01623651,32425.0,32412.0,0.13632608]
[1609808408412,0.13632608,32419.0,32416.0,0.13632608]
[1609808408611,0.13701,32419.0,32416.0,0.13632608]
[1609808409415,0.13701,32419.0,32415.0,4.4859]
[1609808409815,0.13701,32419.0,32399.0,0.11528]
[1609808410317,0.13701,32419.0,32418.0,0.13632608]
[1609808410715,0.13701,32419.0,32399.0,0.11528]
[1609808411715,0.1015,32427.0,32399.0,0.11528]
[1609808411916,0.1015,32427.0,32399.0,0.81628]
[1609808412115,0.1015,32427.0,32399.0,0.11528]
[1609808412316,0.1015,32427.0,32426.0,0.13632608]
[1609808412717,0.1015,32427.0,32426.0,4.7987]
[1609808414518,0.1015,32427.0,32426.0,4.93502608]
[1609808416423,0.01629488,32436.0,32426.0,4.93502608]
[1609808416625,0.01628892,32435.0,32426.0,4.93502608]
[1609808417025,0.13429,32440.0,32426.0,4.93502608]
[1609808417924,0.01663457,32453.0,32426.0,0.13632608]
[1609808418328,0.01664268,32455.0,32439.0,3.6517]
[1609808418525,0.01664268,32455.0,32452.0,0.13632608]
[1609808418926,0.13632608,32461.0,32452.0,0.13632608]
[1609808419126,0.13632608,32461.0,32452.0,0.80962608]
[1609808419524,0.51280249,32462.0,32452.0,0.80962608]
[1609808420527,0.01670388,32463.0,32461.0,0.13632608]
[1609808421528,0.72785904,32468.0,32461.0,0.13632608]
[1609808421529,0.01683806,32468.0,32464.0,4.2139]
[1609808421828,0.51934628,32472.0,32464.0,4.2139]
[1609808422426,0.51934628,32472.0,32471.0,0.13632608]
[1609808422829,0.01697046,32473.0,32471.0,0.13632608]
[1609808423629,0.01700937,32480.0,32471.0,0.13632608]
[1609808424029,0.01700937,32480.0,32477.0,3.5814]
[1609808424430,0.01700937,32480.0,32479.0,0.13632608]
[1609808424829,0.01700937,32480.0,32477.0,3.5814]
[1609808425430,0.12333,32485.0,32477.0,3.5814]
[1609808426629,0.12333,32485.0,32484.0,0.13632608]
[1609808427930,0.12333,32485.0,32467.0,0.11681]
[1609808428131,0.12333,32485.0,32459.0,4.3894]
[1609808428733,0.12333,32485.0,32484.0,0.13632608]
[1609808429833,0.12333,32485.0,32483.0,4.1998]
[1609808430233,0.01714287,32489.0,32483.0,4.1998]
[1609808430433,0.16065,32485.0,32483.0,4.1998]
[1609808430634,0.16065,32485.0,32484.0,0.13632608]
[1609808433235,0.16065,32485.0,32484.0,0.13444627]
[1609808433434,0.16065,32485.0,32484.0,4.78564627]
[1609808435436,0.01699924,32507.0,32484.0,4.78564627]
[1609808436038,0.2721,32524.0,32484.0,4.78564627]
[1609808436039,0.01701243,32512.0,32484.0,4.78564627]
[1609808436437,0.01701243,32512.0,32484.0,0.13444627]
[1609808436641,0.01701243,32512.0,32496.0,3.8023]
[1609808437243,0.13632608,32516.0,32510.0,0.13632608]
[1609808437743,0.01702687,32520.0,32510.0,0.13632608]
[1609808437943,0.60706707,32523.0,32510.0,0.13632608]
[1609808437944,0.01701357,32522.0,32510.0,0.04239068]
[1609808438245,0.01701679,32523.0,32510.0,0.04239068]
[1609808439148,0.15334287,32523.0,32521.0,0.13632608]
[1609808440146,0.13632608,32523.0,32521.0,0.13632608]
[1609808440747,0.13632608,32523.0,32496.0,3.8023]
[1609808440946,0.24600608,32523.0,32496.0,3.8023]
[1609808441146,0.10968,32523.0,32519.0,0.13632608]
[1609808442448,0.10968,32523.0,32496.0,3.8023]
[1609808442650,0.10968,32523.0,32488.0,0.13192]
[1609808442850,0.10968,32523.0,32482.0,3.8068]
[1609808443850,0.10968,32523.0,32501.0,0.13632608]
[1609808444249,0.10968,32523.0,32500.0,3.5189]
[1609808445856,0.10968,32523.0,32512.0,0.13632608]
[1609808446057,0.2721,32524.0,32512.0,0.13632608]
[1609808446357,0.2721,32524.0,32500.0,3.5189]
[1609808446557,0.39952,32524.0,32500.0,3.5189]
[1609808447958,0.13632608,32511.0,32510.0,0.13632608]
[1609808448159,0.27223608,32511.0,32510.0,0.13632608]
[1609808449564,0.13591,32511.0,32500.0,3.5189]
[1609808450261,0.27223608,32511.0,32510.0,0.13632608]
[1609808452665,0.27223608,32511.0,32500.0,3.5189]
[1609808454165,0.27223608,32511.0,32510.0,0.13632608]
[1609808455367,0.27223608,32511.0,32495.0,4.3413]
[1609808456173,0.13632608,32507.0,32503.0,0.13632608]
[1609808459075,0.13591,32511.0,32503.0,0.13632608]
[1609808459276,0.39952,32524.0,32503.0,0.13632608]
[1609808460175,0.13632608,32509.0,32508.0,0.13632608]
[1609808460575,0.25601608,32509.0,32508.0,0.13632608]
[1609808461177,0.11969,32509.0,32479.0,0.11104]
[1609808461376,0.11969,32509.0,32492.0,4.1602]
[1609808462276,0.11969,32509.0,32508.0,0.13632608]
[1609808463077,0.11969,32509.0,32492.0,4.1602]
[1609808464178,0.11969,32509.0,32491.0,0.12288]
[1609808464381,0.11969,32509.0,32480.0,0.1771]
[1609808464980,0.11969,32509.0,32488.0,0.13632608]
[1609808465380,0.11969,32509.0,32480.0,0.1771]
[1609808465583,4.5268,32520.0,32480.0,0.1771]
[1609808465779,0.12054,32509.0,32480.0,0.1771]
[1609808466180,3.6744,32507.0,32465.0,0.1771]
[1609808466581,3.6744,32507.0,32464.0,0.152]
[1609808466780,0.5818,32506.0,32464.0,0.152]
[1609808466982,0.5818,32506.0,32465.0,0.13632608]
[1609808467381,0.5818,32506.0,32447.0,0.12956]
[1609808468681,0.5818,32506.0,32442.0,2.18242759]
[1609808469085,4.1056,32485.0,32444.0,0.13632608]
[1609808469283,4.24086,32485.0,32444.0,0.13632608]
[1609808469483,0.2879,32484.0,32429.0,0.1771]
[1609808469683,0.2905,32483.0,32429.0,0.1771]
[1609808469882,0.2905,32483.0,32428.0,4.9466]
[1609808470382,0.2905,32483.0,32429.0,0.1771]
[1609808470784,0.4621483,32480.0,32429.0,0.1771]
[1609808470983,0.4621483,32480.0,32441.0,0.13632608]
[1609808471383,0.2905,32483.0,32441.0,0.13632608]
[1609808473288,0.2905,32483.0,32437.0,0.09824]
[1609808473988,0.29919713,32483.0,32437.0,0.09824]
[1609808474187,0.13632608,32454.0,32452.0,0.13632608]
[1609808474486,0.24631608,32454.0,32452.0,0.13632608]
[1609808474687,0.10999,32454.0,32452.0,0.13632608]
[1609808475588,0.11858,32473.0,32452.0,0.13632608]
[1609808475790,0.11858,32473.0,32452.0,0.29598608]
[1609808476188,0.11858,32473.0,32468.0,0.13632608]
[1609808476389,0.11858,32473.0,32453.0,0.1771]
[1609808478188,0.11858,32473.0,32461.0,0.13632608]
[1609808480190,0.13632608,32466.0,32461.0,0.13632608]
[1609808482195,0.13632608,32466.0,32465.0,0.13632608]
[1609808485298,0.11858,32473.0,32465.0,0.13632608]
[1609808485502,5.4204,32484.0,32465.0,0.13632608]
[1609808485701,0.2879,32484.0,32465.0,0.13632608]
[1609808486304,0.13632608,32482.0,32481.0,0.13632608]
[1609808486503,0.2879,32484.0,32481.0,0.13632608]
[1609808487205,0.2879,32484.0,32464.0,0.11452]
[1609808487605,0.2879,32484.0,32455.0,0.15202]
[1609808487804,0.2879,32484.0,32453.0,0.1771]
[1609808488005,4.0747,32480.0,32453.0,0.1771]
[1609808488203,4.0747,32480.0,32435.0,5.80142207]
[1609808488403,0.13632608,32461.0,32458.0,0.13632608]
[1609808489005,0.11512,32465.0,32435.0,5.80142207]
[1609808490008,0.11512,32465.0,32435.0,3.5831]
[1609808490206,0.12319,32473.0,32435.0,3.5831]
[1609808490407,0.13632608,32470.0,32464.0,0.13632608]
[1609808491108,0.12319,32473.0,32464.0,0.13632608]
[1609808491507,0.2879,32484.0,32464.0,0.13632608]
[1609808492309,0.13632608,32481.0,32479.0,0.13632608]
[1609808493316,0.13632608,32481.0,32463.0,0.11675]
[1609808493814,0.2879,32484.0,32463.0,0.11675]
[1609808494413,0.2879,32484.0,32478.0,0.13632608]
[1609808495015,0.2879,32484.0,32463.0,0.11675]
[1609808496420,0.2879,32484.0,32477.0,0.13632608]
[1609808497418,0.13526,32485.0,32477.0,0.13632608]
[1609808497618,0.28,32493.0,32477.0,0.13632608]
[1609808498319,0.28,32493.0,32492.0,0.13632608]
[1609808501723,0.2988,32503.0,32492.0,0.13632608]
[1609808501923,0.12054,32509.0,32486.0,0.15925]
[1609808502122,0.289,32515.0,32486.0,0.15925]
[1609808502522,0.289,32515.0,32507.0,0.13632608]
[1609808503224,0.0917,32514.0,32507.0,0.13632608]
[1609808503424,0.289,32515.0,32507.0,0.13632608]
[1609808504326,0.289,32515.0,32500.0,0.09967]
[1609808504526,0.289,32515.0,32502.0,0.13632608]
[1609808506028,0.289,32515.0,32493.0,5.16835]
[1609808506632,0.289,32515.0,32508.0,0.13632608]
[1609808508532,0.13632608,32509.0,32508.0,0.13632608]
[1609808509533,0.289,32515.0,32505.0,4.3573]
[1609808510535,0.42532608,32515.0,32514.0,0.13632608]
[1609808510734,0.289,32515.0,32514.0,0.13632608]
[1609808510935,0.00876709,32522.0,32514.0,0.13632608]
[1609808511135,0.00876709,32522.0,32514.0,4.65022608]
[1609808512536,0.00876709,32522.0,32521.0,0.13632608]
[1609808512735,0.00876709,32522.0,32521.0,0.84545608]
[1609808512936,0.02613584,32523.0,32521.0,0.84545608]
[1609808513740,3.0857847,32578.0,32521.0,0.84545608]
[1609808513741,0.00884265,32544.0,32521.0,0.84545608]
[1609808514638,0.13632608,32526.0,32525.0,0.13632608]
[1609808517042,0.1438,32533.0,32521.0,0.70913]
[1609808518742,0.1438,32533.0,32521.0,0.12073]
[1609808518941,0.1438,32533.0,32515.0,0.13384]
[1609808519441,0.13632608,32516.0,32515.0,0.27016608]
[1609808520344,0.16055,32524.0,32515.0,0.27016608]
[1609808521343,0.16055,32524.0,32522.0,0.13632608]
[1609808522147,0.16055,32524.0,32515.0,0.13384]
[1609808523347,0.13632608,32520.0,32519.0,0.13632608]
[1609808523548,0.13632608,32520.0,32515.0,0.13384]
[1609808524150,0.13632608,32520.0,32508.0,0.15746]
[1609808524349,0.13632608,32520.0,32507.0,3.5319]
[1609808524751,0.16055,32524.0,32507.0,3.5319]
[1609808524951,0.1438,32533.0,32507.0,3.5319]
[1609808525154,0.12145678,32541.0,32507.0,3.5319]
[1609808525457,0.12145678,32541.0,32515.0,0.13632608]
[1609808526051,0.12145678,32541.0,32507.0,3.5319]
[1609808526253,0.00879159,32539.0,32507.0,3.5319]
[1609808526952,0.00875412,32537.0,32507.0,3.5319]
[1609808527452,0.13632608,32508.0,32507.0,3.5319]
[1609808527652,0.13632608,32508.0,32506.0,0.13632608]
[1609808528054,0.14042,32511.0,32500.0,0.14894]
[1609808528253,0.14042,32511.0,32493.0,0.11595]
[1609808528452,0.14042,32511.0,32484.0,0.09977]
[1609808528653,0.14042,32511.0,32485.0,0.1771]
[1609808529554,0.13632608,32489.0,32485.0,0.1771]
[1609808532463,0.14834,32491.0,32485.0,0.1771]
[1609808533764,0.14834,32491.0,32490.0,0.13632608]
[1609808533964,0.14834,32491.0,32485.0,0.1771]
[1609808534765,0.14042,32511.0,32485.0,0.1771]
[1609808534966,0.2703,32515.0,32485.0,0.1771]
[1609808535665,0.13632608,32504.0,32502.0,0.13632608]
[1609808536067,0.41633,32515.0,32490.0,4.8374]
[1609808536266,0.41633,32515.0,32490.0,4.94429]
[1609808537668,0.41633,32515.0,32509.0,0.13632608]
[1609808538470,0.2703,32515.0,32509.0,0.13632608]
[1609808539371,0.2941,32521.0,32509.0,0.13632608]
[1609808539770,4.5149,32520.0,32509.0,0.13632608]
[1609808539970,4.5149,32520.0,32490.0,0.10689]
[1609808540372,0.2941,32521.0,32490.0,0.10689]
[1609808540572,0.2927,32537.0,32501.0,3.9997]
[1609808540973,0.2904,32536.0,32501.0,0.15648]
[1609808541172,0.29075053,32535.0,32519.0,5.1191]
[1609808541773,0.282,32535.0,32519.0,5.1191]
[1609808543777,0.282,32535.0,32534.0,0.13632608]
[1609808544182,0.282,32535.0,32534.0,0.16061]
[1609808544377,0.0922,32535.0,32534.0,0.16061]
[1609808544678,0.0922,32535.0,32534.0,0.88791]
[1609808545679,0.0922,32535.0,32534.0,1.02423608]
[1609808547282,0.0922,32535.0,32534.0,0.88791]
[1609808547886,0.0922,32535.0,32534.0,1.02423608]
[1609808548487,0.0922,32535.0,32534.0,0.29693608]
[1609808549488,0.0922,32535.0,32522.0,0.11376]
[1609808549987,0.0922,32535.0,32534.0,0.13632608]
[1609808550188,0.0922,32535.0,32534.0,0.25938608]
[1609808552590,0.0922,32535.0,32534.0,0.12306]
[1609808553591,0.0922,32535.0,32522.0,0.11376]
[1609808553791,0.0922,32535.0,32520.0,3.8064]
[1609808553991,0.0922,32535.0,32534.0,0.13632608]
[1609808554190,0.0922,32535.0,32534.0,0.24433608]
[1609808556192,0.0922,32535.0,32534.0,0.10801]
[1609808557993,0.0922,32535.0,32534.0,0.24433608]
[1609808559496,0.0922,32535.0,32534.0,0.10801]
[1609808559696,0.0922,32535.0,32515.0,2.21574817]
[1609808559897,0.0922,32535.0,32534.0,3.8886]
[1609808560096,0.0922,32535.0,32534.0,4.13410608]
[1609808560297,0.2904,32536.0,32534.0,4.13410608]
[1609808560496,0.2904,32536.0,32534.0,0.10918]
[1609808560696,0.00893258,32570.0,32534.0,0.10918]
[1609808560899,0.00893258,32570.0,32561.0,4.7439]
[1609808561101,0.00893258,32570.0,32561.0,4.905]
[1609808561999,0.00887099,32574.0,32569.0,0.13632608]
[1609808562199,0.00887099,32574.0,32569.0,0.29420608]
[1609808562399,0.00887099,32574.0,32573.0,3.9448]
[1609808562802,0.00892036,32609.0,32573.0,3.9448]
[1609808563703,0.0089349,32615.0,32573.0,3.9448]
[1609808564000,0.0089349,32615.0,32595.0,0.13632608]
[1609808564203,0.00892282,32612.0,32595.0,0.13632608]
[1609808564407,0.15534282,32612.0,32595.0,0.13632608]
[1609808564602,0.15534282,32612.0,32573.0,3.9448]
[1609808565004,0.00891747,32610.0,32573.0,3.9448]
[1609808566004,0.00891747,32610.0,32586.0,0.13632608]
[1609808566204,0.00891747,32610.0,32579.0,0.15773]
[1609808567205,0.00891747,32610.0,32562.0,3.6751]
[1609808568108,0.00892046,32611.0,32584.0,0.13632608]
[1609808568908,0.15528323,32612.0,32584.0,0.13632608]
[1609808569708,0.14642,32612.0,32584.0,0.13632608]
[1609808569906,0.00887353,32616.0,32584.0,0.13632608]
[1609808570108,0.00887353,32616.0,32598.0,0.13632608]
[1609808570406,0.00887353,32616.0,32578.0,0.11106]
[1609808570606,0.2775,32615.0,32570.0,0.13465]
[1609808570806,5.0836,32600.0,32570.0,0.13465]
[1609808571006,5.19498,32600.0,32570.0,0.13465]
[1609808571206,5.19498,32600.0,32561.0,0.1611]
[1609808571407,5.19498,32600.0,32550.0,3.7018]
[1609808572209,0.13632608,32576.0,32575.0,0.13632608]
[1609808572809,0.14401,32578.0,32567.0,4.3511]
[1609808574112,0.14401,32578.0,32577.0,0.13632608]
[1609808574310,0.13632608,32591.0,32577.0,0.13632608]
[1609808574912,0.11138,32600.0,32568.0,0.10281]
[1609808576113,4.5008,32613.0,32568.0,0.10281]
[1609808576515,4.5008,32613.0,32591.0,0.13632608]
[1609808576714,4.5008,32613.0,32568.0,0.10281]
[1609808578214,4.5008,32613.0,32567.0,4.3511]
[1609808578616,4.5008,32613.0,32580.0,0.13632608]
[1609808580616,0.13632608,32581.0,32580.0,0.13632608]
[1609808580816,0.26174608,32581.0,32580.0,0.13632608]
[1609808581920,0.26174608,32581.0,32567.0,4.3511]
[1609808582119,0.26174608,32581.0,32555.0,0.1771]
[1609808582520,0.12542,32581.0,32569.0,0.13632608]
[1609808584523,0.13632608,32574.0,32573.0,0.13632608]
[1609808584722,0.26091608,32574.0,32555.0,0.1771]
[1609808585924,0.12459,32574.0,32555.0,0.1771]
[1609808586526,0.13632608,32573.0,32571.0,0.13632608]
[1609808587527,0.12542,32581.0,32571.0,0.13632608]
[1609808587728,0.2725,32593.0,32571.0,0.13632608]
[1609808587926,0.2725,32593.0,32571.0,0.15201]
[1609808588526,0.13632608,32590.0,32587.0,0.13632608]
[1609808593534,0.13632608,32590.0,32571.0,4.07561]
[1609808594536,0.13632608,32585.0,32584.0,0.13632608]
[1609808594936,0.13632608,32585.0,32571.0,4.07561]
[1609808596640,0.13632608,32585.0,32584.0,0.13632608]
[1609808596844,0.13632608,32585.0,32571.0,4.07561]
[1609808598742,0.13632608,32578.0,32575.0,0.13632608]
[1609808600645,0.11673,32584.0,32575.0,0.13632608]
[1609808600845,0.11673,32584.0,32571.0,4.07561]
[1609808601347,0.13632608,32583.0,32581.0,0.13632608]
[1609808602245,0.13632608,32583.0,32571.0,4.07561]
[1609808602445,0.13632608,32583.0,32571.0,0.15201]
[1609808602645,0.13632608,32583.0,32564.0,0.13427]
[1609808602845,0.13632608,32583.0,32555.0,0.5331]
[1609808603446,0.11673,32584.0,32564.0,0.13632608]
[1609808603847,0.15498,32591.0,32564.0,0.13632608]
[1609808604047,0.2725,32593.0,32564.0,0.13632608]
[1609808604646,0.2725,32593.0,32555.0,0.1771]
[1609808604847,0.40064,32593.0,32555.0,0.1771]
[1609808605047,3.799,32581.0,32555.0,0.1771]
[1609808605247,3.94059,32581.0,32555.0,0.1771]
[1609808605447,0.13632608,32556.0,32555.0,0.31342608]
[1609808606748,0.13632608,32556.0,32555.0,0.13632608]
[1609808608551,0.12511,32561.0,32535.0,0.1771]
[1609808609151,0.12511,32561.0,32535.0,0.837]
[1609808609452,0.12511,32561.0,32560.0,0.13632608]
[1609808609852,0.12511,32561.0,32548.0,0.11282]
[1609808610652,0.2809,32567.0,32548.0,0.11282]
[1609808612153,0.2809,32567.0,32561.0,0.13632608]
[1609808612353,0.4089,32568.0,32557.0,0.14165]
[1609808612556,0.2794,32568.0,32557.0,0.14165]
[1609808614058,0.2794,32568.0,32565.0,0.13632608]
[1609808614858,0.2794,32568.0,32557.0,0.14165]
[1609808615258,0.2794,32568.0,32548.0,0.11282]
[1609808615457,0.2794,32568.0,32546.0,4.4506]
[1609808616258,0.2794,32568.0,32565.0,0.13632608]
[1609808616658,0.2794,32568.0,32552.0,0.10911]
[1609808617658,0.2794,32568.0,32546.0,2.23057396]
[1609808617859,4.3311,32566.0,32546.0,2.23057396]
[1609808618259,0.13632608,32547.0,32546.0,2.36690004]
[1609808618660,0.11753,32551.0,32546.0,2.23057396]
[1609808618861,0.11753,32551.0,32540.0,2.23134122]
[1609808619261,0.11753,32551.0,32534.0,0.10918]
[1609808620462,0.11753,32551.0,32545.0,0.13632608]
[1609808620661,0.092,32550.0,32534.0,0.10918]
[1609808621364,0.11753,32551.0,32534.0,0.10918]
[1609808621766,0.2858,32565.0,32534.0,4.69378]
[1609808622267,0.0918,32564.0,32534.0,4.69378]
[1609808622464,0.0918,32564.0,32563.0,0.13632608]
[1609808622665,0.0918,32564.0,32555.0,0.10852]
[1609808623365,0.2858,32565.0,32555.0,0.10852]
[1609808623765,0.2858,32565.0,32547.0,0.15665]
[1609808624365,0.093,32564.0,32547.0,0.15665]
[1609808624569,0.093,32564.0,32558.0,0.13632608]
[1609808625770,0.2858,32565.0,32558.0,0.13632608]
[1609808626068,0.2858,32565.0,32547.0,0.15665]
[1609808626570,0.2858,32565.0,32564.0,0.13632608]
[1609808627173,0.2858,32565.0,32547.0,0.15665]
[1609808627373,0.0914,32564.0,32547.0,0.15665]
[1609808627573,0.2858,32565.0,32547.0,0.15665]
[1609808628575,0.0916,32564.0,32547.0,0.15665]
[1609808628774,0.0916,32564.0,32563.0,0.13632608]
[1609808629777,0.2858,32565.0,32563.0,0.13632608]
[1609808630878,0.0922,32564.0,32563.0,0.13632608]
[1609808631678,0.0922,32564.0,32558.0,0.10509]
[1609808632780,0.0922,32564.0,32563.0,0.13632608]
[1609808633181,0.2858,32565.0,32563.0,0.13632608]
[1609808633682,0.2858,32565.0,32558.0,0.10509]
[1609808634781,0.2858,32565.0,32564.0,0.13632608]
[1609808635383,0.2794,32568.0,32564.0,0.13632608]
[1609808636585,0.2794,32568.0,32558.0,0.10509]
[1609808636785,0.2794,32568.0,32552.0,0.1771]
[1609808636987,0.2794,32568.0,32567.0,0.13632608]
[1609808637187,0.2794,32568.0,32567.0,0.24865608]
[1609808637386,0.13632608,32579.0,32567.0,0.24865608]
[1609808637587,0.2746,32580.0,32567.0,0.24865608]
[1609808639089,0.0917,32586.0,32579.0,0.13632608]
[1609808639288,0.0917,32586.0,32579.0,0.28644608]
[1609808639888,0.78093619,32591.0,32579.0,0.28644608]
[1609808641091,0.78093619,32591.0,32587.0,0.13632608]
[1609808642091,0.00912825,32589.0,32587.0,0.13632608]
[1609808642792,0.0092033,32606.0,32579.0,0.15012]
[1609808642991,0.0092033,32606.0,32581.0,5.0046]
[1609808643193,0.0918,32600.0,32591.0,0.13632608]
[1609808643391,0.14478,32600.0,32591.0,0.13632608]
[1609808643592,0.14478,32600.0,32581.0,5.0046]
[1609808643993,0.14478,32600.0,32579.0,0.15012]
[1609808644392,0.0911,32599.0,32567.0,0.11233]
[1609808644593,0.505,32599.0,32566.0,2.22402753]
[1609808644794,5.0902,32597.0,32566.0,2.22402753]
[1609808645397,5.0902,32597.0,32570.0,0.13632608]
[1609808645998,0.00915843,32592.0,32570.0,0.13632608]
[1609808646197,0.5823,32589.0,32559.0,0.13241]
[1609808647001,0.5823,32589.0,32552.0,0.1771]
[1609808647202,0.14284843,32592.0,32552.0,0.1771]
[1609808647400,4.3781,32578.0,32559.0,0.13632608]
[1609808647601,4.52267,32578.0,32559.0,0.13632608]
[1609808648501,4.52267,32578.0,32552.0,0.1771]
[1609808648701,0.0908,32577.0,32552.0,0.1771]
[1609808649200,4.52267,32578.0,32552.0,0.1771]
[1609808649402,4.52267,32578.0,32557.0,0.13632608]
[1609808649701,0.14457,32578.0,32557.0,0.13632608]
[1609808650303,0.0916,32577.0,32557.0,0.13632608]
[1609808651304,0.0916,32577.0,32562.0,0.13632608]
[1609808651704,0.0916,32577.0,32552.0,0.1771]
[1609808653310,0.0916,32577.0,32554.0,0.13632608]
[1609808653509,0.14457,32578.0,32554.0,0.13632608]
[1609808653709,0.59022925,32585.0,32554.0,0.13632608]
[1609808654111,0.59022925,32585.0,32552.0,0.1771]
[1609808654310,0.74551925,32585.0,32552.0,0.1771]
[1609808654512,0.00906984,32581.0,32552.0,0.1771]
[1609808654912,0.00906374,32580.0,32552.0,0.1771]
[1609808655413,0.13632608,32553.0,32552.0,0.1771]
[1609808655814,0.13632608,32553.0,32544.0,0.4726]
[1609808656213,0.13632608,32553.0,32544.0,0.356]
[1609808657417,0.13632608,32553.0,32552.0,0.13632608]
[1609808658522,0.13632608,32553.0,32544.0,0.356]
[1609808659420,0.13632608,32553.0,32551.0,0.13632608]
[1609808662723,0.13632608,32553.0,32544.0,0.356]
[1609808663324,0.11548,32559.0,32551.0,0.13632608]
[1609808663524,4.1596,32560.0,32551.0,0.13632608]
[1609808663726,0.0934,32559.0,32544.0,0.356]
[1609808663925,0.24481,32559.0,32544.0,0.356]
[1609808664126,0.15141,32559.0,32544.0,0.356]
[1609808665232,0.0908,32558.0,32544.0,0.356]
[1609808665431,0.13632608,32550.0,32549.0,0.13632608]
[1609808666534,0.22792608,32550.0,32549.0,0.13632608]
[1609808666734,0.13632608,32550.0,32549.0,0.13632608]
[1609808667636,0.22972608,32550.0,32549.0,0.13632608]
[1609808668836,0.13632608,32550.0,32549.0,0.13632608]
[1609808669838,4.04122608,32550.0,32541.0,0.11658]
[1609808670038,0.13632608,32550.0,32537.0,0.1771]
[1609808670239,0.13632608,32550.0,32524.0,2.78189811]
[1609808670438,0.091,32549.0,32524.0,2.78189811]
[1609808670838,0.10368,32551.0,32524.0,2.78189811]
[1609808671240,0.10368,32551.0,32535.0,1.64217354]
[1609808671438,0.13632608,32536.0,32535.0,1.64217354]
[1609808671638,0.24006608,32536.0,32535.0,1.64217354]
[1609808672239,4.45316608,32536.0,32535.0,1.64217354]
[1609808672742,0.24006608,32536.0,32535.0,1.64217354]
[1609808673240,0.10374,32536.0,32535.0,1.64217354]
[1609808673640,0.24006608,32536.0,32535.0,1.64217354]
[1609808674641,0.10374,32536.0,32535.0,1.64217354]
[1609808674840,0.2909,32550.0,32535.0,1.64217354]
[1609808675644,0.0907,32549.0,32535.0,1.64217354]
[1609808676246,0.0907,32549.0,32548.0,0.13632608]
[1609808676645,0.10368,32551.0,32548.0,0.13632608]
[1609808676847,0.02660798,32550.0,32548.0,0.13632608]
[1609808677246,0.02660798,32550.0,32537.0,0.16121]
[1609808677647,0.0926,32549.0,32537.0,0.16121]
[1609808678249,0.02660798,32550.0,32537.0,0.16121]
[1609808679051,0.15141,32559.0,32537.0,0.16121]
[1609808679449,0.0919,32560.0,32537.0,0.16121]
[1609808680052,0.2994,32564.0,32537.0,0.16121]
[1609808680253,0.2994,32564.0,32543.0,0.13632608]
[1609808680454,0.5177,32562.0,32531.0,0.1771]
[1609808680653,0.13736,32562.0,32531.0,0.1771]
[1609808680852,4.3885,32556.0,32530.0,0.15322]
[1609808681153,4.3885,32556.0,32515.0,0.16001]
[1609808682353,4.3885,32556.0,32519.0,0.13632608]
[1609808684156,4.3885,32556.0,32515.0,0.16001]
[1609808684357,0.13632608,32520.0,32515.0,0.16001]
[1609808686258,0.13632608,32520.0,32519.0,0.13632608]
[1609808687361,0.0925,32526.0,32519.0,0.13632608]
[1609808687760,0.0925,32526.0,32516.0,2.22591356]
[1609808688162,0.0925,32526.0,32515.0,0.16001]
[1609808688359,0.22882608,32526.0,32525.0,0.13632608]
[1609808688560,0.13632608,32526.0,32525.0,0.13632608]